Cogmind - Beta 12 *** ADVENTURER MODE // 2023.04.14 @ 00:54:18 Player: Anthrax132 Result: Destroyed by G-67 Veteran with Plasma Rifle Performance ------------- Evolutions (5) 2500 Regions Visited (10) 2000 Robots Destroyed (116) 580 Value Destroyed (3676) 3676 Prototype IDs (10) 200 Alien Tech Used (0) 0 Bonus (803) 803 TOTAL SCORE: 9759 Bonus ------- High Alert Combat Kills 85 Follower Combat Kills 218 Entered DSFs 500 Cogmind --------- Core Integrity 0/1000 Matter 71/300 Energy 100/100 System Corruption 0% Temperature Cool (0) Movement Core (50) Location -5/Extension Parts ------- > --- POWER (4) -------- (None) > --- PROPULSION (4) --- (None) > --- UTILITY (6) ------ Advanced Targeting Computer > --- WEAPON (3) ------- (None) > --- INVENTORY (5) ---- Improved Deuterium Engine Advanced Heat Sink Peak State ------------ > --- POWER ------------ Angular Momentum Engine Light Angular Momentum Engine Neutrino Core Neutrino Core > --- PROPULSION ------- Carbon-fiber Leg Carbon-fiber Leg Flexi-carbon Leg Myomer Leg > --- UTILITY ---------- Improved Heat Sink Advanced Targeting Computer Improved Medium Armor Plating Force Field Drone Bay > --- WEAPON ----------- KE Penetrator KE Penetrator > --- INVENTORY -------- Improved Deuterium Engine Advanced Heat Sink Improved Medium Armor Plating [Rating: 73] Favorites ----------- Power Light Nuclear Core Engine Heavy Ion Engine Power Core Light Nuclear Core Propulsion Armored Treads Treads Armored Treads Leg Carbon-fiber Leg Wheel Compact Wheel Hover Unit Improved Gravmag System Flight Unit Biomechanical Wings Utility Light Armor Plating Device Cooling System Processor Advanced Targeting Computer Hackware Hacking Suite Protection Light Armor Plating Weapon Heavy Assault Rifle Energy Gun Particle Gun Energy Cannon Ion Burst Cannon Ballistic Gun Heavy Assault Rifle Ballistic Cannon Enhanced Gauss Cannon Special Weapon Plasma Cutter Build | -11 -10 -9 -8 -7 -7 -7 -6 -6 -5 -5 ------- Run | Jun Mat Mat Mat Fac Low Low Fac DSF Fac Ext Slots Evolved 10 | . . 2 2 2 . . 2 . 2 . Power 3 | . . . 1 1 . . 1 . . . Propulsion 2 | . . . . . . . 1 . 1 . Utility 4 | . . 1 1 1 . . . . 1 . Weapon 1 | . . 1 . . . . . . . . Parts Attached 91 | 5 6 8 17 12 2 1 . 7 5 28 Power 16 | 1 1 1 4 2 . . . . . 7 Engine 9 | 1 . . 3 1 . . . . . 4 Core 7 | . 1 1 1 1 . . . . . 3 Reactor . | . . . . . . . . . . . Propulsion 22 | 2 . 2 1 . . . . 6 2 9 Treads 5 | . . 2 1 . . . . . 1 1 Leg 8 | . . . . . . . . . . 8 Wheel 5 | 2 . . . . . . . 3 . . Hover 3 | . . . . . . . . 3 . . Flight 1 | . . . . . . . . . 1 . Utility 27 | . 3 3 7 8 1 . . . . 5 Device 10 | . 1 2 1 2 1 . . . . 3 Storage . | . . . . . . . . . . . Processor 2 | . . . 1 1 . . . . . . Hackware 1 | . . . . 1 . . . . . . Protection 14 | . 2 1 5 4 . . . . . 2 Artifact . | . . . . . . . . . . . Weapon 26 | 2 2 2 5 2 1 1 . 1 3 7 Energy Gun 2 | . . . . . 1 1 . . . . Energy Cannon 1 | . . . . . . . . 1 . . Ballistic Gun 18 | 2 2 2 5 2 . . . . . 5 Ballistic Cannon 2 | . . . . . . . . . . 2 Launcher . | . . . . . . . . . . . Special Weapon 3 | . . . . . . . . . 3 . Impact Weapon . | . . . . . . . . . . . Slashing Weapon . | . . . . . . . . . . . Piercing Weapon . | . . . . . . . . . . . Special Melee Weapon . | . . . . . . . . . . . Unidentified Prototypes 4 | . . 1 1 . . . . 1 1 . Parts Lost 55 | . . 2 8 2 9 . . 8 6 20 Power 10 | . . 1 1 . 3 . . . . 5 Propulsion 13 | . . . . . 2 . . 3 3 5 Utility 15 | . . . 4 1 1 . . 4 . 5 Weapon 17 | . . 1 3 1 3 . . 1 3 5 Highest Loss Streak 17 | . . 2 3 2 4 . . 8 4 17 To Critical Strikes 2 | . . . . . . . . . 1 1 Average Slot Usage (%) 80 | . 96 96 97 96 73 44 40 32 14 40 Engine 5 | . 3 . 7 7 6 . . . . 7 Core 7 | . 10 11 9 11 3 . . . . 1 Treads 11 | . . 21 18 15 9 . . . 1 . Leg 1 | . . . . . . . . . . 8 Wheel 2 | . 28 . . . . . . 1 . . Device 11 | . 10 22 14 6 8 15 13 6 . 5 Processor 6 | . . . 3 12 15 15 13 10 5 5 Hackware 2 | . . . . 6 7 7 6 3 . . Protection 9 | . 14 10 16 9 5 . . . . 2 Ballistic Gun 19 | . 27 29 26 23 7 . . . . 4 Naked Turns . | . . . . . . . . . . . Heaviest Build 81 | 8 15 20 33 41 41 9 9 9 3 81 Greatest Support 75 | 32 32 40 40 40 40 3 3 30 28 75 Greatest Overweight (x) 9 | . . . . 1 6 2 2 2 . 9 Average Overweight (x) . | . . . . . . 1 2 . . 2 Largest Inventory Capacity 5 | 5 5 5 5 5 5 5 5 5 5 5 Average Capacity 5 | 5 5 5 5 5 5 5 5 5 5 5 Most Carried 5 | 3 4 5 5 5 2 1 4 4 4 5 Average Carried 2 | . 2 3 2 2 . . . 2 . 1 Final Capacity 5 | 5 5 5 5 5 5 5 5 5 5 5 Final Carried 4 | . 4 3 2 1 . . 4 1 1 2 Class Distribution -------------------- 24% | Mutant 24% | Tank 22% | Scavenger-Tank 11% | Hacker-Mutant 9% | Scavenger-Gunner 3% | Scavenger-Mutant Dominant Class ---------------- Mutant | -10/Materials Tank | -9/Materials Tank | -8/Materials Scavenger-Tank | -7/Factory Hacker-Mutant | -7/Lower Caves Hacker-Mutant | -7/Lower Caves Hacker-Mutant | -6/Factory Mutant | -6/DSF Mutant | -5/Factory Mutant | -5/Extension Resources | -11 -10 -9 -8 -7 -7 -7 -6 -6 -5 -5 ----------- Run | Jun Mat Mat Mat Fac Low Low Fac DSF Fac Ext Matter Collected 2981 | 229 249 432 866 454 124 10 . 8 . 609 Remotely . | . . . . . . . . . . . Salvage Created 4948 | . 436 882 1531 659 450 . . . . 990 Parts 282 | . 31 66 102 32 13 . . . . 38 Haulers Intercepted 7 | . 2 3 2 . . . . . . . Recyclers Shooed . | . . . . . . . . . . . Parts Field Recycled . | . . . . . . . . . . . Retrieved Matter . | . . . . . . . . . . . Parts Self-Destructed 16 | . . . . . 16 . . . . . Prevented . | . . . . . . . . . . . Kills | -11 -10 -9 -8 -7 -7 -7 -6 -6 -5 -5 ------- Run | Jun Mat Mat Mat Fac Low Low Fac DSF Fac Ext Combat Hostiles Destroyed 78 | . 6 15 26 12 7 . . . . 12 Guns 76 | . 6 15 26 12 7 . . . . 10 Cannons 2 | . . . . . . . . . . 2 Classes Destroyed 16 | . 4 4 4 1 1 . . . . 2 Worker 7 | . 1 3 2 . . . . . . 1 Builder 7 | . . 1 5 . . . . . . 1 Tunneler 1 | . . . . . . . . . . 1 Hauler 7 | . 2 3 2 . . . . . . . Recycler 3 | . . . 1 . . . . . . 2 Mechanic 1 | . . . 1 . . . . . . . Operator 1 | . . 1 . . . . . . . . Watcher 11 | . 3 4 3 . . . . . . 1 Swarmer 16 | . . 5 5 . 1 . . . . 5 Grunt 29 | . 6 5 11 5 2 . . . . . Brawler 1 | . . . . . 1 . . . . . Duelist 2 | . . . 1 . 1 . . . . . Sentry 22 | . . 5 6 5 1 . . . . 5 Hunter 3 | . . . 3 . . . . . . . Programmer 3 | . . . . 2 1 . . . . . Behemoth 2 | . . . . . . . . . . 2 Best Kill Streak 8 | . 4 6 8 4 3 . . . . 7 Combat Bots Only 5 | . 2 5 4 4 3 . . . . 3 Max Kills in Single Turn 4 | . 2 2 4 1 1 . . . . 2 Gunslinging . | . . . . . . . . . . . Exploded . | . . . . . . . . . . . Melee . | . . . . . . . . . . . Uniques/NPCs Destroyed . | . . . . . . . . . . . Combat | -11 -10 -9 -8 -7 -7 -7 -6 -6 -5 -5 -------- Run | Jun Mat Mat Mat Fac Low Low Fac DSF Fac Ext Damage Taken 7712 | . 129 198 1139 820 1049 . 60 549 780 2988 Core 1841 | . 19 17 75 77 323 . . 317 451 562 Absorbed by Shields 822 | . . . . 26 404 . . 31 . 361 Regen/Repaired (Parts) 63 | . . 63 . . . . . . . . Core Remaining (%) 79 | 100 92 95 86 . . 42 . 62 . . Volleys Fired 271 | . 26 34 77 36 23 . . . . 75 Largest 3 | . 2 3 3 3 3 . . . . 3 Hottest 116 | . 46 69 69 69 111 . . . . 116 Shots Fired 679 | . 52 93 223 108 56 . . . . 147 Gun 655 | . 52 93 223 108 56 . . . . 123 Cannon 24 | . . . . . . . . . . 24 Launcher . | . . . . . . . . . . . Special . | . . . . . . . . . . . Kinetic 664 | . 52 93 223 108 41 . . . . 147 Thermal 15 | . . . . . 15 . . . . . Explosive . | . . . . . . . . . . . Electromagnetic . | . . . . . . . . . . . Robot Hit Streak 76 | . 13 16 36 47 76 . . . . 17 Robot Miss Streak 4 | . 2 4 3 1 3 . . . . 4 Penetration Max 1 | . . . . . . . . . . 1 Secondary Targets 10 | . 1 . 7 . 1 . . . . 1 Max Gunslinging Chain 1 | . 1 . 1 . 1 . . . . 1 Shots Hit Robots 528 | . 43 58 177 86 49 . . . . 115 Core Hits 224 | . 20 36 77 30 22 . . 1 . 38 Critical Kills 4 | . 2 . 1 . . . . . . 1 Critical Parts Destroyed 5 | . 1 . . 1 . . . . . 3 Critical Strikes 11 | . 3 . 1 1 . . . . . 6 Destroy 9 | . 3 . 1 1 . . . . . 4 Blast 2 | . . . . . . . . . . 2 Melee Attacks . | . . . . . . . . . . . Impact . | . . . . . . . . . . . Slashing . | . . . . . . . . . . . Piercing . | . . . . . . . . . . . Sneak Attacks . | . . . . . . . . . . . Combat Hostiles . | . . . . . . . . . . . Follow-up Attacks . | . . . . . . . . . . . Damage Inflicted 10219 | . 584 923 3175 1492 780 . . 16 . 3249 Guns 9033 | . 584 923 2695 1492 776 . . . . 2563 Cannons 686 | . . . . . . . . . . 686 Explosions 480 | . . . 480 . . . . . . . Melee . | . . . . . . . . . . . Ramming 20 | . . . . . 4 . . 16 . . Kinetic 9513 | . 584 923 2695 1492 570 . . . . 3249 Thermal 206 | . . . . . 206 . . . . . Explosive 480 | . . . 480 . . . . . . . Electromagnetic . | . . . . . . . . . . . Impact . | . . . . . . . . . . . Slashing . | . . . . . . . . . . . Piercing . | . . . . . . . . . . . Highest Corruption 2 | . . . . . 2 2 1 1 . . Average Corruption 1 | . . . . . 1 2 1 1 . . Corruption Purged . | . . . . . . . . . . . Corruption Blocked . | . . . . . . . . . . . Effects 6 | . . . . . 4 . 1 1 . . Message Errors 2 | . . . . . 1 . 1 . . . Matter Fused 1 | . . . . . 1 . . . . . Energy Discharges 1 | . . . . . 1 . . . . . Data Loss (minor) 2 | . . . . . 1 . . 1 . . Overload Shots . | . . . . . . . . . . . Overflow Damage 71 | . . . 38 . . . . . . 33 Projectiles 33 | . . . . . . . . . . 33 Explosions 38 | . . . 38 . . . . . . . Melee . | . . . . . . . . . . . Knockbacks 1 | . . . . . . . . . . 1 Impact . | . . . . . . . . . . . Kinetic 1 | . . . . . . . . . . 1 Secondary . | . . . . . . . . . . . Self-Inflicted Damage 67 | . . . 60 . . . . 7 . . Shots 1 | . . . 1 . . . . . . . Rammed 9 | . . . . . 4 . . 5 . . Targets Rammed 9 | . . . . . 4 . . 5 . . Kicked . | . . . . . . . . . . . Crushed . | . . . . . . . . . . . Highest Temperature 410 | . 30 3 194 286 410 . . . . 273 Average Temperature 102 | . 15 3 30 90 161 . . . . 93 Received Heat Transfer 2462 | . 93 81 576 370 650 . . 147 18 527 Effects 9 | . . . . 1 5 . . . . 3 Shutdowns 1 | . . . . . 1 . . . . . Energy Bleed 2 | . . . . 1 1 . . . . . Interference 5 | . . . . . 2 . . . . 3 Short Circuit 1 | . . . . . 1 . . . . . Siege Activations . | . . . . . . . . . . . Robots Corrupted . | . . . . . . . . . . . Combat Hostiles . | . . . . . . . . . . . Parts Fried . | . . . . . . . . . . . Impact Corruptions . | . . . . . . . . . . . Robots Melted . | . . . . . . . . . . . Combat Hostiles . | . . . . . . . . . . . Parts Melted . | . . . . . . . . . . . Heat Transferred 481 | . . . . . 481 . . . . . Parts Sabotaged . | . . . . . . . . . . . Parts Stolen . | . . . . . . . . . . . Parts Stripped . | . . . . . . . . . . . Power Chain Reactions . | . . . . . . . . . . . Missiles Intercepted . | . . . . . . . . . . . Alert | -11 -10 -9 -8 -7 -7 -7 -6 -6 -5 -5 ------- Run | Jun Mat Mat Mat Fac Low Low Fac DSF Fac Ext Peak Influence 550 | . 236 314 550 217 . . 8 35 30 309 Initial 96 | . . 12 66 96 . . 5 4 15 5 Average 147 | . 87 133 298 99 . . 5 6 9 87 Maximum Alert Level 2 | . 1 1 2 1 . . . . . 1 Low Security (%) 70 | 100 77 80 20 99 . . 100 100 100 83 Level 1 24 | . 22 19 59 . . . . . . 16 Level 2 5 | . . . 19 . . . . . . . Level 3 . | . . . . . . . . . . . Level 4 . | . . . . . . . . . . . Level 5 . | . . . . . . . . . . . High Security . | . . . . . . . . . . . Max Security . | . . . . . . . . . . . Squads Dispatched 9 | . . 1 4 2 . . . . 2 . Investigation 1 | . . . . . . . . . 1 . Extermination 2 | . . . . 2 . . . . . . Reinforcement 3 | . . 1 1 . . . . . 1 . Assault . | . . . . . . . . . . . Garrison 3 | . . . 3 . . . . . . . Intercept . | . . . . . . . . . . . Searches Triggered . | . . . . . . . . . . . Construction Impeded 1 | . . . 1 . . . . . . . Haulers Reinforced . | . . . . . . . . . . . Active Scanning Responses . | . . . . . . . . . . . Cargo Convoy Interrupts . | . . . . . . . . . . . Stealth | -11 -10 -9 -8 -7 -7 -7 -6 -6 -5 -5 --------- Run | Jun Mat Mat Mat Fac Low Low Fac DSF Fac Ext Distress Signals 7 | . 1 2 1 . . . . . 1 2 Communications Jammed . | . . . . . . . . . . . Distress Signals . | . . . . . . . . . . . Times Spotted 148 | . 11 20 37 13 9 . . 14 7 37 Peak Tracking Total 13 | . 5 5 4 4 5 . . 13 7 11 Tactical Retreats 14 | . . 2 1 1 1 . . 1 1 7 Traps | -11 -10 -9 -8 -7 -7 -7 -6 -6 -5 -5 ------- Run | Jun Mat Mat Mat Fac Low Low Fac DSF Fac Ext Traps Triggered 5 | . . . . . . . 1 2 1 1 Indirectly . | . . . . . . . . . . . Trap Hack Attempts . | . . . . . . . . . . . Triggered . | . . . . . . . . . . . Disarmed . | . . . . . . . . . . . Reprogrammed . | . . . . . . . . . . . Reused . | . . . . . . . . . . . Traps Extracted . | . . . . . . . . . . . Installed . | . . . . . . . . . . . Triggered . | . . . . . . . . . . . Machines | -11 -10 -9 -8 -7 -7 -7 -6 -6 -5 -5 ---------- Run | Jun Mat Mat Mat Fac Low Low Fac DSF Fac Ext Machines Disabled 2 | . . . 2 . . . . . . . Max in Single Turn 2 | . . . 2 . . . . . . . Machines Repaired . | . . . . . . . . . . . Machines Sabotaged . | . . . . . . . . . . . Overloaded Fab Kills . | . . . . . . . . . . . Hacking | -11 -10 -9 -8 -7 -7 -7 -6 -6 -5 -5 --------- Run | Jun Mat Mat Mat Fac Low Low Fac DSF Fac Ext Machines Accessed 15 | . 3 3 3 3 . . 1 . . 2 Terminals 11 | . 3 1 3 1 . . 1 . . 2 Fabricators . | . . . . . . . . . . . Repair Stations 2 | . . 1 . 1 . . . . . . Recycling Units 1 | . . . . 1 . . . . . . Scanalyzers 1 | . . 1 . . . . . . . . Garrison Access . | . . . . . . . . . . . Total Hacks 26 | . 7 6 7 3 . . 1 . . 2 Successful 18 | . 5 5 4 1 . . 1 . . 2 Failed 8 | . 2 1 3 2 . . . . . . Catastrophic 1 | . 1 . . . . . . . . . Database Lockouts . | . . . . . . . . . . . Manual . | . . . . . . . . . . . Terminals 19 | . 7 1 7 1 . . 1 . . 2 Fabricators . | . . . . . . . . . . . Repair Stations 4 | . . 3 . 1 . . . . . . Recycling Units 1 | . . . . 1 . . . . . . Scanalyzers 2 | . . 2 . . . . . . . . Garrison Access . | . . . . . . . . . . . Terminal Hacks 13 | . 5 1 4 . . . 1 . . 2 Record 5 | . 4 1 . . . . . . . . Prototype ID Bank 3 | . 1 . 2 . . . . . . . Open Door 2 | . . . . . . . . . . 2 Open DSF 1 | . . . . . . . 1 . . . Unreport Threat 1 | . . . 1 . . . . . . . Reinforcement Status 1 | . . . 1 . . . . . . . Fabricator Hacks . | . . . . . . . . . . . Repair Station Hacks 2 | . . 2 . . . . . . . . Scan Component 1 | . . 1 . . . . . . . . Repair 1 | . . 1 . . . . . . . . Recycling Unit Hacks 1 | . . . . 1 . . . . . . Retrieve Matter 1 | . . . . 1 . . . . . . Scanalyzer 2 | . . 2 . . . . . . . . Insert Component 1 | . . 1 . . . . . . . . Analyze 1 | . . 1 . . . . . . . . Garrison Access Hacks . | . . . . . . . . . . . Unauthorized Hacks . | . . . . . . . . . . . Terminals . | . . . . . . . . . . . Fabricators . | . . . . . . . . . . . Repair Stations . | . . . . . . . . . . . Recycling Units . | . . . . . . . . . . . Scanalyzers . | . . . . . . . . . . . Garrison Access . | . . . . . . . . . . . Data Cores Recovered . | . . . . . . . . . . . Used . | . . . . . . . . . . . Hacking Detections 7 | . 2 2 . 3 . . . . . . Full Trace Events . | . . . . . . . . . . . Feedback Events . | . . . . . . . . . . . Feedback Blocked . | . . . . . . . . . . . Robot Schematics Acquired . | . . . . . . . . . . . Robots Built . | . . . . . . . . . . . Authchips . | . . . . . . . . . . . Time . | . . . . . . . . . . . Total Robot Build Rating . | . . . . . . . . . . . Part Schematics Acquired 1 | . . 1 . . . . . . . . Parts Built . | . . . . . . . . . . . Authchips . | . . . . . . . . . . . Time . | . . . . . . . . . . . Total Part Build Rating . | . . . . . . . . . . . Parts Repaired 1 | . . 1 . . . . . . . . Time 26 | . . 26 . . . . . . . . Parts Recycled . | . . . . . . . . . . . Recycled Matter . | . . . . . . . . . . . Retrieved Matter . | . . . . . . . . . . . Retrieved Components . | . . . . . . . . . . . Parts Scanalyzed 1 | . . 1 . . . . . . . . Part Schematics Acquired 1 | . . 1 . . . . . . . . Parts Damaged . | . . . . . . . . . . . Bothacking | -11 -10 -9 -8 -7 -7 -7 -6 -6 -5 -5 ------------ Run | Jun Mat Mat Mat Fac Low Low Fac DSF Fac Ext Used RIF Installer . | . . . . . . . . . . . Robots Hacked . | . . . . . . . . . . . Non-combat . | . . . . . . . . . . . Combat . | . . . . . . . . . . . Robot Hacks Applied . | . . . . . . . . . . . Relay Couplers Released . | . . . . . . . . . . . Fabnet Peak Effective % . | . . . . . . . . . . . Robots Rewired . | . . . . . . . . . . . Allies Hacked . | . . . . . . . . . . . Hacks Repelled . | . . . . . . . . . . . Allies | -11 -10 -9 -8 -7 -7 -7 -6 -6 -5 -5 -------- Run | Jun Mat Mat Mat Fac Low Low Fac DSF Fac Ext Total Allies 3 | . . . . . . . . . . 3 Largest Group 3 | . . . . . . . . . . 3 Highest-Rated Group 90 | . . . . . . . . . . 90 Highest-Rated Ally 39 | . . . . . . . . . . 39 Total Orders . | . . . . . . . . . . . Ally Attacks 25 | . . . . . . . . . . 25 Total Damage 407 | . . . . . . . . . . 407 Kills 5 | . . . . . . . . . . 5 Allies Corrupted . | . . . . . . . . . . . Allies Melted . | . . . . . . . . . . . Intel | -11 -10 -9 -8 -7 -7 -7 -6 -6 -5 -5 ------- Run | Jun Mat Mat Mat Fac Low Low Fac DSF Fac Ext Robot Analysis Total . | . . . . . . . . . . . Derelict Logs Recovered 3 | . . . . . 2 1 . . . . Drone Launches 2 | . . . . . . . . . . 2 Drone Recoveries . | . . . . . . . . . . . Exploration | -11 -10 -9 -8 -7 -7 -7 -6 -6 -5 -5 ------------- Run | Jun Mat Mat Mat Fac Low Low Fac DSF Fac Ext Turns Passed 6412 | 42 517 1002 1467 1231 652 217 121 81 202 880 Spaces Moved 3140 | 37 385 375 604 547 318 160 79 71 305 259 Core 665 | 8 . . . . 85 160 79 15 187 131 Treads 1776 | . . 370 604 547 233 . . . 22 . Legs 128 | . . . . . . . . . . 128 Wheels 428 | 29 385 5 . . . . . 9 . . Hover 143 | . . . . . . . . 47 96 . Flight . | . . . . . . . . . . . Fastest Speed 50 | 50 100 100 170 170 100 100 150 52 50 50 Average Speed 151 | 89 100 169 170 176 176 135 150 80 59 222 Slowest Speed 500 | 100 100 170 170 250 350 150 150 150 160 500 Overloaded Moves . | . . . . . . . . . . . Propulsion Burnouts . | . . . . . . . . . . . Robots Hopped . | . . . . . . . . . . . Cave-ins Triggered . | . . . . . . . . . . . Exploration Rate (%) 35 | 4 64 44 51 17 56 22 3 80 9 40 Regions Visited 10 Branch Regions 3 Pre-discovered Areas 1 | . . . . . . 1 . . . . Known Exits Taken 3 | . . . 1 1 . . 1 . . . Unknown Exits Taken 6 | 1 1 1 . . 1 1 . . 1 . Scrap Searched 2 | . . . . . 1 1 . . . . Spaces Dug . | . . . . . . . . . . . Terrain Destroyed 31 | . . . 20 . . . . . . 11 Melee . | . . . . . . . . . . . Projectile 11 | . . . . . . . . . . 11 AOE 20 | . . . 20 . . . . . . . Terrain Rammed . | . . . . . . . . . . . Walls Destroyed . | . . . . . . . . . . . Machines Disabled . | . . . . . . . . . . . Actions | -11 -10 -9 -8 -7 -7 -7 -6 -6 -5 -5 --------- Run | Jun Mat Mat Mat Fac Low Low Fac DSF Fac Ext Total 4287 | 46 475 686 890 736 356 161 82 95 324 436 Wait 661 | . 46 252 171 125 8 . . 5 9 45 Move 3130 | 36 384 374 603 546 317 159 78 70 304 259 Hop . | . . . . . . . . . . . Pick Up 86 | 5 9 10 15 9 1 1 4 4 5 23 Fast Attach 5 | . . . 1 . . . . . . 4 Attach 70 | 5 6 9 10 7 2 1 . 7 5 18 Detach 4 | . 1 1 . 2 . . . . . . Swap 17 | . . . 6 5 . . . . . 6 Drop 32 | . 3 6 7 6 1 . . 2 1 6 Fire 271 | . 26 34 77 36 23 . . . . 75 Melee . | . . . . . . . . . . . Ram 6 | . . . . . 1 . . 5 . . Kick . | . . . . . . . . . . . Crush 3 | . . . . . 3 . . . . . Escape Stasis 2 | . . . . . . . . 2 . . Rewire . | . . . . . . . . . . . Trap . | . . . . . . . . . . . Miscellaneous . | . . . . . . . . . . . Route ------- -11/Junkyard -10/Materials -9/Materials (discovered 2 exits: *Mat / [*Min]) -8/Materials -7/Factory -7/Lower Caves -7/Lower Caves -6/Factory -6/DSF -5/Factory -5/Extension History --------- Turn | Location | Event 23 | -11/Junkyard | Discovered new exit (range 15) 43 | -11/Junkyard | Entered Materials 303 | -10/Materials | Build established: Mutant 556 | -10/Materials | Discovered new exit (range 4) 560 | -10/Materials | Entered another Materials area 560 | -9/Materials | Evolved 2 slots: Utility x1, Weapon x1 712 | -9/Materials | Repaired Lgt. Armor Plating 1134 | -9/Materials | Build established: Tank 1383 | -9/Materials | Discovered new exit (range 12) 1484 | -9/Materials | Discovered new exit (range 10) 1562 | -9/Materials | Entered another Materials area 1562 | -8/Materials | Evolved 2 slots: Power x1, Utility x1 1600 | -8/Materials | Garrison activated, responded to threat 2474 | -8/Materials | Lost 3 parts (1u2w) 2848 | -8/Materials | Build established: Scavenger-Tank 2936 | -8/Materials | Discovered new exit (range 16) 3028 | -8/Materials | Identified exit to Factory 3029 | -8/Materials | Entered Factory 3029 | -7/Factory | Evolved 2 slots: Power x1, Utility x1 3818 | -7/Factory | Build established: Scavenger-Gunner 4113 | -7/Factory | Discovered new exit (range 13) 4257 | -7/Factory | Identified exit to Lower Caves 4260 | -7/Factory | Entered Lower Caves 4321 | -7/Lower Caves | Learned 8 Factory zone layouts 4406 | -7/Lower Caves | Learned Factory security intel 4582 | -7/Lower Caves | Attracted the attention of an 0b10 outpost 4646 | -7/Lower Caves | Lost 4 parts (1p1n2w) 4835 | -7/Lower Caves | Core integrity fell below 50% 4881 | -7/Lower Caves | Discovered new exit (range 14) 4885 | -7/Lower Caves | Build established: Hacker-Mutant 4912 | -7/Lower Caves | Entered another Lower Caves area 4929 | -7/Lower Caves | Discovered new exit (range 13) 5129 | -7/Lower Caves | Entered Factory 5129 | -6/Factory | Evolved 2 slots: Power x1, Propulsion x1 5249 | -6/Factory | Identified exit to DSF 5250 | -6/Factory | Entered DSF 5284 | -6/DSF | Additional patrols routed to DSF 5307 | -6/DSF | Wild Derelicts raided the area 5320 | -6/DSF | Discovered new exit (range 11) 5331 | -6/DSF | Entered Factory 5331 | -5/Factory | Evolved 2 slots: Propulsion x1, Utility x1 5353 | -5/Factory | Lost 8 parts (3n4u1w) 5521 | -5/Factory | Discovered new exit (range 14) 5525 | -5/Factory | Lost 4 parts (1n3w) 5533 | -5/Factory | Entered Extension 5550 | -5/Extension | Rescued a captive Derelict 5551 | -5/Extension | Rescued a captive Derelict 5630 | -5/Extension | Rescued a captive Derelict 5787 | -5/Extension | Build established: Mutant 6190 | -5/Extension | Spotted B-75 Beast 6197 | -5/Extension | Core integrity fell below 50% 6231 | -5/Extension | Destroyed B-75 Beast 6234 | -5/Extension | Spotted B-75 Beast 6324 | -5/Extension | Destroyed B-75 Beast 6333 | -5/Extension | Disrupted transfer network 6378 | -5/Extension | Core integrity fell below 20% 6413 | -5/Extension | Destroyed by G-67 Veteran with Plasma Rifle Last Messages --------------- Penetrated by Slug. Hvy. Machine Gun destroyed. Acquired 6 matter. Slug penetrates Sealed Heavy Doors. Y-64 Sentinel destroyed. Slug penetrates Door Terminal. Door Terminal disabled. Penetrated by Slug. Destroyed Com. Wheel. R-10 Processor knocked back. Penetrated by Slug. Magnetic Acceleration Cannon destroyed. Penetrated by Slug. C-30 ARC bursts open, deploying its payload. G-67 Veteran unfolds itself. G-50 Soldier unfolds itself. C-30 ARC bursts open, deploying its payload. S-27 Virus unfolds itself. Acquired 27 matter. Rnf. Deuterium Engine destroyed. Map ----- +----------------------------------------------------+ | #??? ??????????????????????????????? | | ########### % #??# #?????????????????????????????? | | ??????????## ##??# #?????????????????????????????? | | ???????????#%#???# #?????????????????????????????? | | ???????????#%#???# #?????????????????????????????? | | ???????????#%#???# #?????????????????????????????? | | ??????????##+##### #?????????????????????????????? | | ??????????# % % *# #?????????????????????????????? | | ??????????# =[%#!#?????????????????????????????? | | ??????????# !*+%#?????????????????????????????? | | ??????????#] [#=# #???????????????????????????? | | ??????????# #%###???????????????????????????? | | ??????????# / #%#??????????#??????????????????? | | ??????????########%#????????? #??????????????????? | | ???????????? ?##?#%#?######?? #??????????????????? | | ???????????? ??###R### ## ###%###????????????????? | | ???????????#####"%%%==% "" ""#????????????????? | | ???????????# #! *!|% % "%"%#????????????????? | | ????????????# ;%%%%* % #????????????????? | | ?????????????# ; %*!== Y #????????????????? | | ???############; *===!= !%* #########????????? | | ? [ |%% % ss ????????? | | ? ==* s % ???????? | | ? = %!% ss g ???????? | | ? %! tg ??????? | | ?? R ! *!@= tg R% ????????? | | ??############## [ * ##???????????????? | | ???????????????# [ #????????????????? | | ???????????????# #????????????????? | | ??????????????#% % #????????????????? | | ?????????????# ; #????????????????? | | ?????????????######## #"""#######????????????????? | | ????????????????????###??????????????????????????? | | ?????????????????????????????????????????????????? | | | | | | | | | | | | | | | | | | | | | | | | | | | | | | | | | +----------------------------------------------------+ Best States ------------- Heat Dissipation 59 Energy Generation 59 Energy Capacity 780 Matter Stores 300 Matter Capacity 300 Sight Range 16 Robot Scan Range 14 Terrain Scan Density 10 Armor Coverage 450 Resistance: KI 20 Resistance: TH 30 Resistance: EX 20 Resistance: EM 20 Resistance: I 20 Resistance: S 20 Resistance: P 20 Evasion (%) 55 Targeting Accuracy 8 Recoil Reduction 2 Kinecelleration 30 Offensive Hacking 20 Item Schematics ----------------- Imp. Signal Interpreter | -9/Materials | Scanalyzed Robot Schematics ------------------ None Fabricated ------------ Nothing Alien Tech Used ----------------- None Achievements -------------- None Challenges ------------ None Game ------ Seed CloakingFirePod Manual? 0 Play Time 01:16:07 Cumulative 7.9 hours Start 2023.04.13 @ 23:36:28 End 2023.04.14 @ 00:54:18 Sessions 1 Manual Loads 0 Difficulty Adventurer Special Mode None Game No. 6 Rogue 0 Adventurer 6 Explorer 0 Win Type - Total 0 Types 0/0/0/0/0/0/0/0/0 Lore% 7 Gallery% 16 Achievement% 16 Wizard Run 0 Options --------- ASCII 0 Keyboard 0 Movement Mouse Keybinds 0 Fullscreen 2 Font 24/Smallcaps Map View 76x50 Tactical HUD 0 Map Filters NONE Filters NONE Steam 1 RUN: ffeb4fd6-28fe-4118-ba83-9bd06bd0118c